Cogmind - Beta 9.6 @@@ ROGUE MODE // 2020.06.03 @ 16:41:48 Player: Ben'n'Dan Result: Destroyed by S-10 Pest with Light Assault Rifle Performance ------------- Evolutions (2) 1000 Regions Visited (3) 600 Robots Destroyed (0) 0 Value Destroyed (0) 0 Prototype IDs (0) 0 Alien Tech Used (0) 0 Bonus (470) 470 TOTAL SCORE: 2070 Bonus ------- Pacifist 470 Cogmind --------- Core Integrity 0/550 Matter 117/300 Energy 98/100 System Corruption 0% Temperature Cool (0) Movement Core (50) Location -8/Materials Parts ------- > --- POWER (1) -------- (None) > --- PROPULSION (4) --- (None) > --- UTILITY (4) ------ Hacking Suite Hacking Suite > --- WEAPON (2) ------- (None) > --- INVENTORY (4) ---- Ion Engine Peak State ------------ > --- POWER ------------ Light Ion Engine > --- PROPULSION ------- (None) > --- UTILITY ---------- Hacking Suite Hacking Suite Hacking Suite > --- WEAPON ----------- (None) > --- INVENTORY -------- Ion Engine Medium Laser [Rating: 10] Favorites ----------- Power Light Ion Engine Engine Light Ion Engine Propulsion None Utility Hacking Suite Hackware Hacking Suite Weapon Medium Laser Energy Gun Medium Laser Build | -11 -10 -9 -8 ------- Run | Scr Mat Mat Mat Slots Evolved 4 | . . 2 2 Power . | . . . . Propulsion 2 | . . 1 1 Utility 2 | . . 1 1 Weapon . | . . . . Parts Attached 6 | 1 . 3 2 Power 1 | 1 . . . Engine 1 | 1 . . . Core . | . . . . Reactor . | . . . . Propulsion . | . . . . Treads . | . . . . Leg . | . . . . Wheel . | . . . . Hover . | . . . . Flight . | . . . . Utility 4 | . . 3 1 Device . | . . . . Storage . | . . . . Processor . | . . . . Hackware 4 | . . 3 1 Protection . | . . . . Artifact . | . . . . Weapon 1 | . . . 1 Energy Gun 1 | . . . 1 Energy Cannon . | . . . . Ballistic Gun . | . . . . Ballistic Cannon . | . . . . Launcher . | . . . . Special Weapon . | . . . . Impact Weapon . | . . . . Slashing Weapon . | . . . . Piercing Weapon . | . . . . Special Melee Weapon . | . . . . Unidentified Prototypes . | . . . . Parts Lost 4 | . . 2 2 Power 1 | . . 1 . Propulsion . | . . . . Utility 2 | . . 1 1 Weapon 1 | . . . 1 Highest Loss Streak 4 | . . 2 4 Average Slot Usage (%) 23 | . 14 37 21 Engine 6 | . 14 11 . Hackware 16 | . . 26 21 Naked Turns . | . . . . Heaviest Build 3 | 3 3 3 2 Greatest Support 3 | 3 3 3 3 Greatest Overweight (x) . | . . . . Average Overweight (x) . | . . . . Largest Inventory Capacity 4 | 4 4 4 4 Average Capacity 4 | 4 4 4 4 Most Carried 3 | 2 2 3 2 Average Carried 1 | 1 2 2 1 Final Capacity 4 | 4 4 4 4 Final Carried 3 | 2 2 3 1 Class Distribution -------------------- 67% | Hacker-Mutant 32% | Mutant Dominant Class ---------------- Mutant | -10/Materials Hacker-Mutant | -9/Materials Hacker-Mutant | -8/Materials Resources | -11 -10 -9 -8 ----------- Run | Scr Mat Mat Mat Matter Collected 53 | 53 . . . Remotely . | . . . . Salvage Created . | . . . . Parts . | . . . . Haulers Intercepted . | . . . . Recyclers Shooed . | . . . . Parts Field Recycled . | . . . . Retrieved Matter . | . . . . Parts Self-Destructed . | . . . . Prevented . | . . . . Kills | -11 -10 -9 -8 ------- Run | Scr Mat Mat Mat Combat Hostiles Destroyed . | . . . . Classes Destroyed . | . . . . Best Kill Streak . | . . . . Combat Bots Only . | . . . . Max Kills in Single Turn . | . . . . Gunslinging . | . . . . Exploded . | . . . . Melee . | . . . . Uniques/NPCs Destroyed . | . . . . Combat | -11 -10 -9 -8 -------- Run | Scr Mat Mat Mat Damage Taken 764 | . 26 125 613 Core 639 | . 26 59 554 Absorbed by Shields . | . . . . Core Remaining (%) 91 | 100 89 85 . Volleys Fired . | . . . . Largest . | . . . . Hottest . | . . . . Shots Fired . | . . . . Gun . | . . . . Cannon . | . . . . Launcher . | . . . . Special . | . . . . Kinetic . | . . . . Thermal . | . . . . Explosive . | . . . . Electromagnetic . | . . . . Robot Hit Streak . | . . . . Robot Miss Streak . | . . . . Penetration Max . | . . . . Secondary Targets . | . . . . Shots Hit Robots . | . . . . Core Hits 1 | . 1 . . Critical Hits . | . . . . Critical Kills . | . . . . Critical Parts Destroyed . | . . . . Melee Attacks . | . . . . Impact . | . . . . Slashing . | . . . . Piercing . | . . . . Sneak Attacks . | . . . . Combat Hostiles . | . . . . Follow-up Attacks . | . . . . Damage Inflicted 1 | . 1 . . Guns . | . . . . Cannons . | . . . . Explosions . | . . . . Melee . | . . . . Ramming 1 | . 1 . . Kinetic . | . . . . Thermal . | . . . . Explosive . | . . . . Electromagnetic . | . . . . Impact . | . . . . Slashing . | . . . . Piercing . | . . . . Highest Corruption . | . . . . Average Corruption . | . . . . Corruption Purged . | . . . . Overload Shots . | . . . . Overflow Damage . | . . . . Projectiles . | . . . . Explosions . | . . . . Melee . | . . . . Knockbacks . | . . . . Impact . | . . . . Kinetic . | . . . . Secondary . | . . . . Self-Inflicted Damage . | . . . . Shots . | . . . . Rammed 1 | . 1 . . Targets Rammed 1 | . 1 . . Kicked . | . . . . Crushed . | . . . . Highest Temperature . | . . . . Average Temperature . | . . . . Received Heat Transfer 93 | . . 48 45 Siege Activations . | . . . . Robots Corrupted . | . . . . Combat Hostiles . | . . . . Parts Fried . | . . . . Impact Corruptions . | . . . . Robots Melted . | . . . . Combat Hostiles . | . . . . Parts Melted . | . . . . Heat Transferred . | . . . . Parts Sabotaged . | . . . . Parts Stolen . | . . . . Parts Stripped . | . . . . Power Chain Reactions . | . . . . Missiles Intercepted . | . . . . Alert | -11 -10 -9 -8 ------- Run | Scr Mat Mat Mat Peak Influence 74 | . 34 55 74 Average Influence 24 | . 13 29 31 Maximum Alert Level . | . . . . Low Security (%) 100 | 100 100 100 100 Level 1 . | . . . . Level 2 . | . . . . Level 3 . | . . . . Level 4 . | . . . . Level 5 . | . . . . High Security . | . . . . Max Security . | . . . . Squads Dispatched 3 | . . 1 2 Investigation 2 | . . 1 1 Extermination . | . . . . Reinforcement 1 | . . . 1 Assault . | . . . . Garrison . | . . . . Intercept . | . . . . Construction Impeded . | . . . . Haulers Reinforced . | . . . . Stealth | -11 -10 -9 -8 --------- Run | Scr Mat Mat Mat Distress Signals . | . . . . Communications Jammed . | . . . . Distress Signals . | . . . . Times Spotted 35 | . 11 11 13 Peak Tracking Total 11 | . 11 10 11 Tactical Retreats . | . . . . Traps | -11 -10 -9 -8 ------- Run | Scr Mat Mat Mat Traps Triggered 1 | . . 1 . Indirectly . | . . . . Trap Hack Attempts . | . . . . Triggered . | . . . . Disarmed . | . . . . Reprogrammed . | . . . . Reused . | . . . . Traps Extracted . | . . . . Installed . | . . . . Triggered . | . . . . Machines | -11 -10 -9 -8 ---------- Run | Scr Mat Mat Mat Machines Disabled . | . . . . Max in Single Turn . | . . . . Machines Sabotaged . | . . . . Garrisons Compromised . | . . . . Overloaded Fab Kills . | . . . . Fab Network Shutdowns . | . . . . Hacking | -11 -10 -9 -8 --------- Run | Scr Mat Mat Mat Machines Accessed 4 | . 2 1 1 Terminals 4 | . 2 1 1 Fabricators . | . . . . Repair Stations . | . . . . Recycling Units . | . . . . Scanalyzers . | . . . . Garrison Access . | . . . . Total Hacks 9 | . 3 3 3 Successful 5 | . 1 3 1 Failed 4 | . 2 . 2 Catastrophic 2 | . 2 . . Database Lockouts . | . . . . Manual 2 | . 2 . . Terminals 9 | . 3 3 3 Fabricators . | . . . . Repair Stations . | . . . . Recycling Units . | . . . . Scanalyzers . | . . . . Garrison Access . | . . . . Terminal Hacks 5 | . 1 3 1 Level Access Points 2 | . . 1 1 Emergency Access Points 1 | . 1 . . Machine Index 1 | . . 1 . Registered Components 1 | . . 1 . Fabricator Hacks . | . . . . Repair Station Hacks . | . . . . Recycling Unit Hacks . | . . . . Scanalyzer . | . . . . Garrison Access Hacks . | . . . . Unauthorized Hacks . | . . . . Terminals . | . . . . Fabricators . | . . . . Repair Stations . | . . . . Recycling Units . | . . . . Scanalyzers . | . . . . Garrison Access . | . . . . Data Cores Recovered . | . . . . Used . | . . . . Hacking Detections 4 | . 2 1 1 Full Trace Events 1 | . . . 1 Feedback Events . | . . . . Feedback Blocked . | . . . . Robot Schematics Acquired . | . . . . Robots Built . | . . . . Matter . | . . . . Time . | . . . . Total Robot Build Rating . | . . . . Part Schematics Acquired . | . . . . Parts Built . | . . . . Matter . | . . . . Time . | . . . . Total Part Build Rating . | . . . . Parts Repaired . | . . . . Time . | . . . . Parts Recycled . | . . . . Recycled Matter . | . . . . Retrieved Matter . | . . . . Retrieved Components . | . . . . Parts Scanalyzed . | . . . . Part Schematics Acquired . | . . . . Parts Damaged . | . . . . Bothacking | -11 -10 -9 -8 ------------ Run | Scr Mat Mat Mat Used RIF Installer . | . . . . Robots Hacked . | . . . . Non-combat . | . . . . Combat . | . . . . Robot Hacks Applied . | . . . . Relay Couplers Released . | . . . . Robots Rewired . | . . . . Allies Hacked . | . . . . Hacks Repelled . | . . . . Allies | -11 -10 -9 -8 -------- Run | Scr Mat Mat Mat Total Allies . | . . . . Largest Group . | . . . . Highest-Rated Group . | . . . . Highest-Rated Ally . | . . . . Total Orders . | . . . . Ally Attacks . | . . . . Total Damage . | . . . . Kills . | . . . . Allies Corrupted . | . . . . Allies Melted . | . . . . Intel | -11 -10 -9 -8 ------- Run | Scr Mat Mat Mat Robot Analysis Total . | . . . . Derelict Logs Recovered . | . . . . Drone Launches . | . . . . Drone Recoveries . | . . . . Exploration | -11 -10 -9 -8 ------------- Run | Scr Mat Mat Mat Turns Passed 193 | 14 48 51 80 Spaces Moved 360 | 20 93 91 156 Core 360 | 20 93 91 156 Treads . | . . . . Legs . | . . . . Wheels . | . . . . Hover . | . . . . Flight . | . . . . Fastest Speed 50 | 50 50 50 50 Average Speed 50 | 50 50 50 50 Slowest Speed 50 | 50 50 50 50 Overloaded Moves . | . . . . Propulsion Burnouts . | . . . . Robots Hopped . | . . . . Cave-ins Triggered . | . . . . Exploration Rate (%) 19 | 2 41 16 20 Regions Visited 3 Branch Regions . Pre-discovered Areas . | . . . . Known Exits Taken 1 | . . 1 . Unknown Exits Taken 2 | 1 1 . . Scrap Searched . | . . . . Spaces Dug . | . . . . Terrain Destroyed . | . . . . Melee . | . . . . Projectile . | . . . . AOE . | . . . . Actions | -11 -10 -9 -8 --------- Run | Scr Mat Mat Mat Total 368 | 23 93 94 158 Wait . | . . . . Move 357 | 19 92 90 156 Hop . | . . . . Pick Up 4 | 3 . 1 . Fast Attach 3 | . . 3 . Attach 3 | 1 . . 2 Detach . | . . . . Swap . | . . . . Drop . | . . . . Fire . | . . . . Melee . | . . . . Ram 1 | . 1 . . Kick . | . . . . Crush . | . . . . Escape Stasis . | . . . . Rewire . | . . . . Trap . | . . . . Miscellaneous . | . . . . Route ------- -11/Scrapyard -10/Materials -9/Materials (discovered 3 exits: *Mat x3) -8/Materials (discovered 3 exits: Fac x3) History --------- Turn | Location | Event 2 | -11/Scrapyard | Discovered new exit (range 16) 15 | -11/Scrapyard | Entered Materials 61 | -10/Materials | Discovered new exit (range 4) 63 | -10/Materials | Entered another Materials area 63 | -9/Materials | Evolved 2 slots: Propulsion x1, Utility x1 90 | -9/Materials | Identified exit to Materials 114 | -9/Materials | Entered another Materials area 114 | -8/Materials | Evolved 2 slots: Propulsion x1, Utility x1 139 | -8/Materials | Identified exit to Factory 162 | -8/Materials | Core integrity fell below 50% 174 | -8/Materials | Lost 4 parts (1p2u1w) 185 | -8/Materials | Core integrity fell below 20% 194 | -8/Materials | Destroyed by S-10 Pest with Light Assault Rifle Last Messages --------------- GOAL=ESCAPE 00115_ T-07 Excavator is excavating. 00128_ K-01 Serf collects debris. 00139_ Connecting with Terminal... >>Access(Main) Found 3 level access points to Factory: (78,85) (10,85) (89,12) Map updated. 00139_ ALERT: Suspicious activity at Terminal M009. Dispatching Investigation squad. 00139_ Med. Laser destroyed. 00143_ Hacking Suite destroyed. 00159_ S-10 Pest destroyed. 00171_ K-01 Serf collects debris. 00172_ O-16 Technician: "IFF HANDSHAKE FAILED. SECURING TERMINAL." 00175_ K-01 Serf collects debris. 00175_ ALERT: Hostiles spotted, dispatching reinforcements to Terminal M011. 00183_ K-01 Serf collects debris. Map ----- +----------------------------------------------------+ | | | | | | | | | | | | | | | | | | | | | ?????????????????????????????????????????????????? | | ?????????????????????????????????????????????????? | | ????????????????????#####????????????????????????? | | ??????????????????? [ ! #????????????????????????? | | ??????????????????? #????????????????????????? | | ##### ???######### """#????????????????????????? | | # ??# # """#????????????????????????? | | #! ?# + """#????????????????????????? | | # # # ! #????????????????????????? | | # #?? + ##########??????????????????????? | | # #????# #?# #??????????????????????? | | # #????# #?#""" #??????????????????????? | | # #????# #?#""" ! #??????????????????????? | | # #????# #?#""" #??????????????????????? | | # #????# #?# #??????????????????????? | | # #????# #?#""" @#??????????????????????? | | # #???## ###""" ########???????????????? | | # #???# #""" # #???????????????? | | # #???# s ssss# """ #???????????????? | | # #???# ^ #"""s # """ =#???????????????? | | # #???# ! #""" # """ ###########?????? | | # #???# #""" # !# #?????? | | # ##??# """ # #[ # #?????? | | #### """ ##########/##/# """ """ #?????? | | """ # """ """ #?????? | | + """ """ #?????? | | # =%= #?????? | | ###+########+################ [ #?????? | | ####### #???? ?????????????# #?????? | | ??????# T #??# ???????????###########?????? | | ??????# #??# [ #??????????????????????????? | | ??????# #??# #??????????????????????????? | | ??????# #??# ! #??????????????????????????? | | ??????# #??# #??????????????????????????? | | ??????# #??# ]] #??????????????????????????? | | ??????#####??# ]! #??????????????????????????? | | ?????????????# ] #??????????????????????????? | | ?????????????######+###??????????????????????????? | | ?????????????????????????????????????????????????? | | ?????????????????????????????????????????????????? | +----------------------------------------------------+ Best States ------------- Heat Dissipation 31 Energy Generation 10 Energy Capacity 125 Matter Stores 147 Matter Capacity 300 Sight Range 16 Terrain Scan Density 10 Evasion (%) 50 Offensive Hacking 30 Item Schematics ----------------- None Robot Schematics ------------------ None Fabricated ------------ Nothing Alien Tech Used ----------------- None Achievements -------------- None Challenges ------------ None Game ------ Seed RemoteTachyonNullifier Manual? 0 Play Time 00:06:12 Cumulative 116.2 hours Start 2020.06.03 @ 16:36:35 End 2020.06.03 @ 16:41:48 Sessions 1 Manual Loads 0 Difficulty Rogue Special Mode None Game No. 256 Rogue 248 Adventurer 8 Explorer 0 Win Type - Total 6 Types 4/0/1/1/0/0/0 Lore% 76 Gallery% 77 Achievement% 58 Wizard Run 0 Options --------- ASCII 0 Keyboard 0 Movement Numpad Keybinds 0 Fullscreen 1 Font 12/Smallcaps Map View 83x54 Tactical HUD 1 Map Filters NONE Filters NONE Steam 1 RUN: 42b0e8ad-5e90-4e98-a220-7be0807775d8